lending/lending_fUSD_20251114
["ID","MTS","AMOUNT","RATE_DAILY","PERIOD"]
[393915136,1763091670984,166.66,0.00016107,2]
[393915137,1763091671226,166.66,0.00016439,2]
[393915138,1763091671439,166.66,0.00016772,2]
[393915139,1763091725745,151.0,0.00016798,2]
[393915140,1763091726331,151.0,0.00016798,2]
[393915141,1763091726966,151.0,0.00016798,2]
[393915142,1763091727616,151.0,0.00016798,2]
[393915143,1763091728247,151.0,0.00016798,2]
[393915144,1763091728848,0.61059332,0.00016798,2]
[393915145,1763091728871,150.38940668,0.00016798,2]
[393915146,1763091729443,151.0,0.00016798,2]
[393915147,1763091730080,151.0,0.00016798,2]
[393915148,1763091730683,151.0,0.00016798,2]
[393915149,1763091731277,151.0,0.00016798,2]
[393915150,1763091732086,151.0,0.00016798,2]
[393915151,1763091732539,151.0,0.00016798,2]
[393915152,1763091733165,151.0,0.00016798,2]
[393915153,1763091733807,151.0,0.00016798,2]
[393915154,1763091734424,151.0,0.00016798,2]
[393915167,1763091747840,-9517.79713557,0.00016798,2]
[393915168,1763091748023,-10000.01,0.00016798,2]
[393915169,1763091748241,-10000.01,0.00016798,2]
[393915170,1763091750298,792.88,0.00016698,2]
[393915182,1763091754761,202.18,0.00016577,2]
[393915194,1763091772722,1117.7624595,0.00040982,120]
[393915196,1763091848306,9004.95,0.00016698,2]
[393915197,1763091848328,5465.0986,0.00016698,2]
[393915198,1763091854573,2500.0,0.00016698,2]
[393915220,1763091879921,1440.8472678,0.00016798,2]
[393915252,1763091943734,594.0641322,0.00016674,2]
[393915253,1763091943759,10000.01,0.00016674,2]
[393915254,1763091943782,10000.01,0.00016674,2]
[393915255,1763091943805,158.7258678,0.00016674,2]
[393915256,1763091967486,150.0,0.000162,2]
[393915258,1763092023965,2500.0,0.00016698,2]
[393915261,1763092059377,878.85,0.00013699,2]
[393915262,1763092064244,723.0,0.00016797,2]
[393915263,1763092082869,504.07,0.00016702,2]
[393915264,1763092086833,4407.41240552,0.00016698,2]
[393915265,1763092111583,445.99920222,0.00016797,2]
[393915266,1763092131147,231.95252446,0.00016797,2]
[393915267,1763092131169,279.37708079,0.00016797,2]
[393915268,1763092141218,300.0,0.00016797,2]
[393915269,1763092156892,200.0,0.00016713,2]
[393915281,1763092187636,319.56686651,0.00016797,2]
[393915282,1763092201481,300.0,0.00016797,2]
[393915283,1763092207515,4837.82,0.00016788,2]
[393915304,1763092222347,3763.2460527,0.00016798,2]
[393915305,1763092222375,10000.01,0.00016798,2]
[393915306,1763092222399,2853.5321809,0.00016798,2]
[393915307,1763092224687,5919.15,0.00016616,2]
[393915320,1763092231965,-23979.13523345,0.00016798,2]
[393915321,1763092231976,-47259.97735455,0.00016798,2]
[393915344,1763092237970,-3376.1993,0.00016798,2]
[393915345,1763092237995,-4749.8434457,0.00016798,2]
[393915348,1763092238007,-468.3752044,0.00016798,2]
[393915353,1763092239831,-300.0,0.00016798,2]
[393915356,1763092239940,-130244.6096043,0.00016798,2]
[393915362,1763092239992,-51984.72969919,0.00016798,2]
[393915364,1763092240001,-300.0,0.00016798,2]
[393915366,1763092240011,-250.0,0.00016798,2]
[393915368,1763092240021,-300.0,0.00016798,2]
[393915370,1763092240030,-1000.0,0.00016799,2]
[393915371,1763092240039,-4407.41240544,0.00016832,2]
[393915378,1763092240251,-500.0,0.00016898,2]
[393915379,1763092240263,-500.0,0.00016898,2]
[393915380,1763092240280,-500.0,0.00016944,2]
[393915381,1763092240290,-4407.41240544,0.00016965,2]
[393915382,1763092240300,-917.72295651,0.00017074,2]
[393915383,1763092240310,-4407.41240544,0.00017099,2]
[393915385,1763092240322,-169.333316,0.000171,2]
[393915387,1763092240331,-2000.0,0.000171,6]
[393915389,1763092240342,-166.66,0.00017104,2]
[393915391,1763092240352,-4100.0,0.000172,6]
[393915393,1763092240363,-4407.41240544,0.00017232,2]
[393915395,1763092240375,-1099.0,0.0001728,2]
[393915396,1763092240385,-367.1189966,0.000173,2]
[393915397,1763092240395,-6200.0,0.000173,6]
[393915398,1763092240404,-4407.41240544,0.00017366,2]
[393915399,1763092240415,-7887.0640417,0.00017378,2]
[393915400,1763092240424,-1099.0,0.00017383,2]
[393915401,1763092240433,-8200.0,0.000174,6]
[393915402,1763092240444,-166.66,0.00017436,2]
[393915403,1763092240452,-150.0,0.00017438,2]
[393915404,1763092240462,-1099.0,0.00017438,2]
[393915405,1763092240471,-1099.0,0.00017471,2]
[393915406,1763092240480,-1099.0,0.00017495,2]
[393915407,1763092240490,-4407.41240544,0.00017499,2]
[393915408,1763092240500,-10300.0,0.000175,6]
[393915409,1763092240509,-1099.0,0.00017509,2]
[393915410,1763092240518,-2000.0,0.000176,6]
[393915411,1763092240527,-242.0,0.0001763,2]
[393915412,1763092240537,-4407.41240544,0.00017633,2]
[393915413,1763092240546,-3907.66630095,0.00017656,2]
[393915414,1763092240555,-1099.0,0.00017674,2]
[393915415,1763092240564,-3907.66630087,0.00017683,2]
[393915416,1763092240574,-2000.0,0.000177,6]
[393915417,1763092240583,-3907.66630087,0.0001771,2]
[393915418,1763092240592,-1099.0,0.0001773,2]
[393915419,1763092240602,-3907.66630087,0.00017737,2]
[393915420,1763092240611,-3907.66630087,0.00017764,2]
[393915421,1763092240620,-4407.41240544,0.00017766,2]
[393915422,1763092240630,-1626.2686,0.00017781,2]
[393915423,1763092240639,-1099.0,0.00017784,2]
[393915424,1763092240649,-3907.66630087,0.00017792,2]
[393915425,1763092240658,-170.87,0.00017799,2]
[393915426,1763092240667,-157.97181192,0.000178,2]
[393915427,1763092240676,-2000.0,0.000178,6]
[393915428,1763092240685,-611.41283772,0.00017803,2]
[393915429,1763092240695,-181.70141029,0.00017803,2]
[393915430,1763092240704,-575.0,0.00017804,2]
[393915431,1763092240714,-1318.0,0.00017804,2]
[393915432,1763092240723,-3465.044,0.00017804,2]
[393915433,1763092240732,-608.0,0.00017804,2]
[393915434,1763092240741,-822.0,0.00017804,2]
[393915435,1763092240751,-1598.0,0.00017804,2]
[393915436,1763092240760,-1190.0,0.00017804,2]
[393915437,1763092240770,-1056.017,0.00017804,2]
[393915438,1763092240789,-1275.0,0.00017804,2]
[393915439,1763092240800,-814.0,0.00017804,2]
[393915440,1763092240809,-6669.0,0.00017804,2]
[393915441,1763092240819,-6486.0,0.00017804,2]
[393915442,1763092240829,-2145.0,0.00017804,2]
[393915443,1763092240839,-560.0,0.00017804,2]
[393915444,1763092240848,-3907.66630087,0.00017819,2]
[393915445,1763092240858,-157.9718119,0.00017825,2]
[393915446,1763092240867,-10175.1236255,0.00017831,2]
[393915447,1763092240877,-3907.66630087,0.00017846,2]
[393915448,1763092240888,-157.9718119,0.0001785,2]
[393915449,1763092240897,-200.0,0.00017856,2]
[393915450,1763092240907,-500.0,0.00017873,2]
[393915451,1763092240916,-157.9718119,0.00017875,2]
[393915452,1763092240927,-628.04625944,0.00017897,2]
[393915453,1763092240936,-25605.3139,0.000179,2]
[393915454,1763092240946,-2500.0,0.000179,3]
[393915455,1763092240955,-4797.6519798,0.000179,2]
[393915456,1763092240965,-2000.0,0.000179,6]
[393915457,1763092240974,-157.9718119,0.000179,2]
[393915458,1763092240984,-4407.41240544,0.000179,2]
[393915459,1763092240993,-1099.0,0.00017942,2]
[393915460,1763092241003,-501.78961038,0.00017973,2]
[393915461,1763092241013,-500.0,0.00017973,2]
[393915462,1763092241023,-501.05359788,0.00017973,2]
[393915463,1763092241034,-500.0,0.00017982,2]
[393915464,1763092241044,-1099.0,0.00017989,2]
[393915465,1763092241054,-1061.5916092,0.00017996,2]
[393915466,1763092241064,-302.88510988,0.00017996,2]
[393915467,1763092241073,-3138.3944356,0.00017997,2]
[393915468,1763092241083,-91407.6686919,0.00017997,2]
[393915469,1763092241101,-102053.2113543,0.00017997,2]
[393915470,1763092241111,-1002.0323,0.00017999,2]
[393915471,1763092241120,-300.0,0.00017999,2]
[393915472,1763092241131,-300.0,0.00017999,2]
[393915473,1763092241140,-4361.0,0.00018,2]
[393915474,1763092241150,-153.20080745,0.00018,2]
[393915475,1763092241164,-4344227.677668,0.00018,2]
[393915476,1763092241175,-651.21028276,0.00018,2]
[393915477,1763092241187,-2632.17689369,0.00018,2]
[393915478,1763092241428,-1682.05639322,0.00018,2]
[393915479,1763092242429,-0.06379542,0.00018,2]
[393915480,1763092242442,-1350.0001,0.00018,2]
[393915488,1763092243232,-3867.4977431,0.00017873,2]
[393915489,1763092243245,-40.16855777,0.00017873,2]
[393915490,1763092243255,-3940.99160596,0.00018,2]
[393915671,1763092245958,-3907.66630087,0.000179,2]
[393915672,1763092245968,-15758.333696,0.00018,2]
[393915673,1763092246217,-250.0,0.00017804,2]
[393915674,1763092246226,-261.84387315,0.00018,2]
[393915678,1763092280347,176.81248374,0.00016797,2]
[393915679,1763092342966,510.01679009,0.00016797,2]
[393915682,1763092461264,500.0,0.00040983,30]
[393915683,1763092461503,218.32594184,0.00040983,30]
[393915685,1763092508977,510.43815614,0.00016797,2]
[393915705,1763092577746,1558.12,0.00016438,2]
[393915707,1763092649552,4759.0,0.0001683,2]
[393915713,1763092730609,500.0,0.00040983,30]
[393915714,1763092730870,508.95067514,0.00040983,30]
[393915726,1763092856315,282.227297,0.0001683,2]
[393915728,1763092920862,150.0,0.00017046,120]
[393915729,1763092933250,191.96,0.00016712,2]
[393915733,1763093013116,499.76180806,0.00040949,30]
[393915734,1763093014473,515.7191354,0.00040949,120]
[393916112,1763093134716,150.39,0.00030137,120]
[393916113,1763093144761,186.28760173,0.000162,2]
[393916114,1763093218830,1296.04,0.00016813,2]
[393916115,1763093285120,796.0,0.0004095,30]
[393916121,1763093432074,-370.58127462,0.00016897,2]
[393916122,1763093432179,-629.41872538,0.00016897,2]
[393916123,1763093432190,-300.0,0.00016902,2]
[393916124,1763093432200,-300.0,0.00016906,2]
[393916125,1763093432210,-300.0,0.00016946,2]
[393916126,1763093432220,-250.0,0.00017,2]
[393916127,1763093432230,-3171.75,0.0001703,2]
[393916128,1763093432241,-150.0,0.00017046,2]
[393916129,1763093432252,-4759.0,0.00017291,2]
[393916130,1763093432262,-168.0,0.00017345,2]
[393916131,1763093432272,-168.0,0.00017412,2]
[393916132,1763093432282,-150.0,0.00017449,2]
[393916133,1763093432292,-504.0,0.00017452,2]
[393916134,1763093432302,-4759.0,0.00017472,2]
[393916135,1763093432312,-4661.22,0.00017472,2]
[393916136,1763093432322,-166.66,0.00017557,2]
[393916137,1763093432332,-178.6,0.00017621,2]
[393916139,1763093432342,-821.0,0.00017687,2]
[393916140,1763093432352,-1598.0,0.00017687,2]
[393916141,1763093432363,-814.0,0.00017687,2]
[393916142,1763093432373,-1275.0,0.00017687,2]
[393916143,1763093432383,-6669.0,0.00017687,2]
[393916144,1763093432392,-560.0,0.00017687,2]
[393916145,1763093432403,-6486.0,0.00017687,2]
[393916146,1763093432415,-1102.88028573,0.000178,2]
[393916147,1763093432425,-195.42637512,0.000178,2]
[393916148,1763093432435,-1562.11839789,0.00017803,2]
[393916149,1763093432446,-264.501,0.00017804,2]
[393916150,1763093432456,-150.0,0.00017804,2]
[393916151,1763093432466,-200.0,0.00017804,2]
[393916152,1763093432476,-200.0,0.00017804,2]
[393916153,1763093432486,-250.0,0.00017804,2]
[393916154,1763093432496,-188.342,0.00017804,2]
[393916155,1763093432506,-217.041,0.00017804,2]
[393916156,1763093432516,-153.364,0.00017804,2]
[393916157,1763093432526,-285.321,0.00017804,2]
[393916158,1763093432535,-189.162,0.00017804,2]
[393916159,1763093432545,-266.384,0.00017804,2]
[393916160,1763093432556,-210.169,0.00017804,2]
[393916161,1763093432566,-221.478,0.00017804,2]
[393916162,1763093432576,-1318.0,0.00017804,2]
[393916163,1763093432587,-575.0,0.00017804,2]
[393916164,1763093432598,-608.0,0.00017804,2]
[393916165,1763093432608,-3429.0,0.00017804,2]
[393916166,1763093432618,-1102.88028569,0.00017811,2]
[393916167,1763093432627,-195.42637505,0.00017814,2]
[393916168,1763093432638,-1102.88028569,0.00017822,2]
[393916169,1763093432648,-195.42637505,0.00017829,2]
[393916170,1763093432658,-1102.88028569,0.00017833,2]
[393916171,1763093432669,-195.42637505,0.00017843,2]
[393916172,1763093432679,-1102.88028569,0.00017844,2]
[393916173,1763093432689,-1102.88028569,0.00017856,2]
[393916174,1763093432699,-200.0,0.00017856,2]
[393916175,1763093432710,-195.42637505,0.00017857,2]
[393916176,1763093432720,-1102.88028569,0.00017867,2]
[393916177,1763093432730,-195.42637505,0.00017871,2]
[393916178,1763093432740,-503.73540755,0.00017873,2]
[393916179,1763093432754,-1102.88028569,0.00017878,2]
[393916180,1763093432764,-200.0,0.00017881,2]
[393916181,1763093432775,-195.42637505,0.00017886,2]
[393916182,1763093432786,-1102.88028569,0.00017889,2]
[393916183,1763093432796,-2418.91,0.0001789,2]
[393916184,1763093432806,-2418.91,0.0001789,2]
[393916185,1763093432817,-168.0,0.00017898,2]
[393916186,1763093432828,-188.08541458,0.00017899,2]
[393916187,1763093432839,-500.0,0.00017899,2]
[393916188,1763093432849,-226.95588207,0.00017899,2]
[393916189,1763093432859,-301.43971273,0.00017899,2]
[393916190,1763093432868,-500.0,0.00017899,2]
[393916191,1763093432878,-500.0,0.00017899,2]
[393916192,1763093432888,-500.0,0.00017899,2]
[393916193,1763093432898,-406.35256712,0.00017899,2]
[393916194,1763093432908,-510.17377737,0.00017899,2]
[393916195,1763093432918,-500.0,0.00017899,2]
[393916196,1763093432928,-501.25017813,0.00017899,2]
[393916197,1763093432939,-506.31193346,0.00017899,2]
[393916198,1763093432954,-509.11266745,0.00017899,2]
[393916199,1763093432963,-500.0,0.00017899,2]
[393916200,1763093432973,-180.76025273,0.00017899,2]
[393916201,1763093432983,-300.0,0.00017899,2]
[393916202,1763093432992,-150.0,0.00017899,2]
[393916203,1763093433002,-186.58746178,0.00017899,2]
[393916204,1763093433013,-300.0,0.00017899,2]
[393916205,1763093433022,-150.0,0.00017899,2]
[393916206,1763093433032,-150.0,0.00017899,2]
[393916207,1763093433042,-500.65233627,0.00017899,2]
[393916208,1763093433051,-500.0,0.00017899,2]
[393916209,1763093433061,-500.0,0.00017899,2]
[393916210,1763093433071,-500.0,0.00017899,2]
[393916211,1763093433081,-171.7,0.00017899,2]
[393916212,1763093433091,-504.65260117,0.00017899,2]
[393916213,1763093433101,-500.0,0.00017899,2]
[393916214,1763093433111,-500.0,0.00017899,2]
[393916215,1763093433121,-500.0,0.00017899,2]
[393916216,1763093433131,-500.0,0.00017899,2]
[393916217,1763093433141,-12282.1259,0.000179,2]
[393916218,1763093433150,-991.29600833,0.000179,3]
[393916219,1763093433161,-11936.0441035,0.000179,2]
[393916220,1763093433174,-101293.99699274,0.000179,2]
[393916221,1763093433186,-250255.86379335,0.000179,2]
[393916226,1763093437985,-2145.0,0.00017687,2]
[393916227,1763093437995,-592.53953495,0.000179,2]
[393916228,1763093438007,-55921.55557546,0.000179,2]
[393916229,1763093438017,-1000.0,0.000179,2]
[393916230,1763093438026,-500.0,0.000179,2]
[393916231,1763093438035,-1102.88028569,0.000179,2]
[393916232,1763093438046,-195.42637505,0.000179,2]
[393916233,1763093438068,-355.7704534,0.00017973,2]
[393916234,1763093438078,-503.73300027,0.00017973,2]
[393916235,1763093438088,-501.25798024,0.00017973,2]
[393916236,1763093438099,-505.00673889,0.00017973,2]
[393916237,1763093438108,-150.85217549,0.00017973,2]
[393916238,1763093438118,-168.0,0.00017977,2]
[393916239,1763093438128,-156.2514583,0.00017997,2]
[393916240,1763093438138,-1941.0954592,0.00017997,2]
[393916241,1763093438148,-48786.0467263,0.00017997,2]
[393916242,1763093438159,-2270.3769642,0.00017997,2]
[393916243,1763093438170,-300.0,0.00017999,2]
[393916244,1763093438179,-300.0,0.00017999,2]
[393916245,1763093438189,-3689.0,0.00018,2]
[393916246,1763093438199,-9237501.70697434,0.00018,2]
[393916248,1763093438209,-924487.36105827,0.00018,2]
[393916250,1763093438222,-300.6,0.00018,2]
[393916252,1763093438234,-2424.24174609,0.00018,2]
[393916262,1763093438320,-39993.3175732,0.00018,2]
[393916445,1763093446444,-1092.4,0.00018,2]
[393916482,1763093877143,500.0,0.00041019,30]
[393916483,1763093877368,500.0,0.00041019,30]
[393916484,1763093877606,500.0,0.00041019,30]
[393916485,1763093877844,500.0,0.00041019,30]
[393916486,1763093878079,500.0,0.00041019,30]
[393916487,1763093878314,500.0,0.00041019,30]
[393916488,1763093878540,500.0,0.00041019,30]
[393916489,1763093878789,500.0,0.00041019,30]
[393916490,1763093879033,500.0,0.00041019,30]
[393916491,1763093879278,500.0,0.00041019,30]
[393916492,1763093879510,500.0,0.00041019,30]
[393916493,1763093879775,229.16104617,0.00041019,30]
[393916503,1763093966270,115595.04177916,0.00041016,30]
[393916504,1763094008129,155.0,0.00022,30]
[393916505,1763094008353,155.0,0.00022,30]
[393916507,1763094026228,356.70310123,0.0003013,120]
[393916509,1763094056297,-13449.56387987,0.00041016,30]
[393916550,1763094159270,153.37,8.445e-05,2]
[393916551,1763094159493,153.37,9.289e-05,2]
[393916552,1763094159702,153.37,0.00010134,2]
[393916553,1763094159910,153.37,0.00010978,2]
[393916554,1763094160310,153.37,0.00011822,2]
[393916555,1763094160536,153.37,0.00012667,2]
[393916556,1763094160755,153.37,0.00013511,2]
[393916557,1763094160980,153.37,0.00014356,2]
[393916558,1763094161180,153.37,0.000152,2]
[393916559,1763094161384,153.37,0.00016045,2]
[393916560,1763094193255,10000.01,0.00016863,2]
[393916561,1763094193277,2355.73,0.00016863,2]
[393916563,1763094203010,175.2721141,0.00041016,30]
[393916565,1763094259514,335.09371124,0.00041017,30]
[393916566,1763094260731,-848.9,0.00024658,30]
[393916567,1763094260784,-299.91010229,0.00028889,30]
[393916568,1763094260830,-848.9,0.00029704,30]
[393916569,1763094260875,-151.51685409,0.0003,30]
[393916570,1763094260924,-14240.0,0.00030137,120]
[393916571,1763094260969,-1007.45,0.00030137,120]
[393916572,1763094261013,-1007.45,0.00030166,120]
[393916573,1763094261056,-1007.45,0.00030196,120]
[393916574,1763094261101,-444.28,0.000302,30]
[393916575,1763094261148,-1007.45,0.00030227,120]
[393916576,1763094261193,-1007.45,0.0003026,120]
[393916577,1763094261234,-1007.45,0.00030295,120]
[393916578,1763094261274,-1007.45,0.00030333,120]
[393916579,1763094261313,-1007.45,0.00030372,120]
[393916580,1763094261352,-1007.45,0.00030415,120]
[393916581,1763094261391,-1007.45,0.0003046,120]
[393916582,1763094261428,-1007.45,0.00030509,120]
[393916583,1763094261467,-1007.45,0.00030563,120]
[393916584,1763094261505,-1007.45,0.00030621,120]
[393916585,1763094261546,-980.0,0.00030685,30]
[393916586,1763094261585,-1007.45,0.00030686,120]
[393916587,1763094261624,-155.514326,0.00030712,31]
[393916588,1763094261661,-151.0,0.00030712,31]
[393916589,1763094261699,-151.885936,0.00030712,31]
[393916590,1763094261735,-159.896263,0.00030712,31]
[393916591,1763094261772,-172.793943,0.00030712,31]
[393916592,1763094261810,-151.0,0.00030712,31]
[393916593,1763094261849,-151.0,0.00030712,31]
[393916594,1763094261890,-151.0,0.00030712,31]
[393916595,1763094261932,-151.0,0.00030712,31]
[393916596,1763094261974,-151.0,0.00030712,31]
[393916597,1763094262017,-151.0,0.00030712,31]
[393916598,1763094262060,-168.770771,0.00030712,31]
[393916599,1763094262103,-152.899646,0.00030712,31]
[393916600,1763094262143,-151.0,0.00030712,31]
[393916601,1763094262191,-151.0,0.00030712,31]
[393916602,1763094262237,-157.215442,0.00030712,31]
[393916603,1763094262285,-153.395981,0.00030712,31]
[393916604,1763094262329,-151.0,0.00030712,31]
[393916605,1763094262600,-151.0,0.00030712,31]
[393916606,1763094262646,-151.0,0.00030712,31]
[393916607,1763094262689,-151.0,0.00030712,31]
[393916608,1763094262728,-151.0,0.00030712,31]
[393916609,1763094262771,-151.0,0.00030712,31]
[393916610,1763094262817,-155.684868,0.00030712,31]
[393916611,1763094262864,-155.122149,0.00030712,31]
[393916612,1763094262905,-304.120822,0.00030712,31]
[393916613,1763094262947,-304.120822,0.00030712,31]
[393916614,1763094262987,-304.120822,0.00030712,31]
[393916615,1763094263042,-304.120822,0.00030712,31]
[393916616,1763094263085,-151.0,0.00030712,31]
[393916617,1763094263130,-151.0,0.00030712,31]
[393916618,1763094263172,-183.533823,0.00030712,31]
[393916619,1763094263216,-151.0,0.00030712,31]
[393916620,1763094263258,-151.0,0.00030712,31]
[393916621,1763094263298,-151.0,0.00030712,31]
[393916622,1763094263339,-151.0,0.00030712,31]
[393916623,1763094263379,-151.0,0.00030712,31]
[393916624,1763094263418,-928.041326,0.00030712,31]
[393916625,1763094263458,-928.041326,0.00030712,31]
[393916626,1763094263498,-928.041326,0.00030712,31]
[393916627,1763094263537,-928.041326,0.00030712,31]
[393916628,1763094263575,-151.0,0.00030712,31]
[393916629,1763094263615,-396.432982,0.00030712,31]
[393916630,1763094263655,-396.432982,0.00030712,31]
[393916631,1763094263696,-396.432982,0.00030712,31]
[393916632,1763094263743,-396.432982,0.00030712,31]
[393916633,1763094263787,-156.915814,0.0003074,31]
[393916634,1763094263837,-153.629288,0.0003074,31]
[393916635,1763094263885,-1007.45,0.00030758,120]
[393916636,1763094263931,-1007.45,0.00030841,120]
[393916637,1763094263975,-1007.45,0.00030935,120]
[393916638,1763094264019,-153.799113,0.0003095,31]
[393916639,1763094264065,-155.145523,0.00030983,31]
[393916640,1763094264110,-478.82688331,0.00031,120]
[393916641,1763094264152,-167.182193,0.00031,31]
[393916642,1763094264194,-157.223789,0.00031,31]
[393916643,1763094264236,-151.0,0.00031,31]
[393916644,1763094264278,-151.90215,0.00031,31]
[393916645,1763094264319,-156.351441,0.00031,31]
[393916646,1763094264360,-151.0,0.00031,31]
[393916647,1763094264403,-151.0,0.00031,31]
[393916648,1763094264446,-151.0,0.00031,31]
[393916649,1763094264490,-151.0,0.00031,31]
[393916650,1763094264534,-151.0,0.00031,31]
[393916651,1763094264577,-152.236836,0.00031,31]
[393916652,1763094264622,-151.0,0.00031,31]
[393916653,1763094264665,-151.0,0.00031,31]
[393916654,1763094264710,-151.0,0.00031,31]
[393916655,1763094264752,-151.0,0.00031,31]
[393916656,1763094264795,-151.0,0.00031,31]
[393916657,1763094264835,-151.0,0.00031,31]
[393916658,1763094264876,-151.0,0.00031,31]
[393916659,1763094264917,-156.603854,0.00031,31]
[393916660,1763094264958,-151.0,0.00031,31]
[393916661,1763094265000,-155.803609,0.00031,31]
[393916662,1763094265044,-151.0,0.00031,31]
[393916663,1763094265089,-166.826081,0.00031,31]
[393916664,1763094265139,-154.409729,0.00031,31]
[393916665,1763094265185,-153.053757,0.00031,31]
[393916666,1763094265230,-234.040997,0.00031,31]
[393916667,1763094265274,-151.0,0.00031,31]
[393916668,1763094265316,-151.0,0.00031,31]
[393916669,1763094265360,-151.0,0.00031,31]
[393916670,1763094265402,-151.0,0.00031,31]
[393916671,1763094265443,-151.0,0.00031,31]
[393916672,1763094265483,-153.278484,0.00031,31]
[393916673,1763094265523,-151.0,0.00031,31]
[393916674,1763094265562,-159.683589,0.00031,31]
[393916675,1763094265603,-151.0,0.00031,31]
[393916676,1763094265644,-151.0,0.00031,31]
[393916677,1763094265684,-153.24227,0.00031,31]
[393916678,1763094265724,-152.472595,0.00031,31]
[393916679,1763094265765,-177.24018,0.00031,31]
[393916680,1763094265806,-177.24018,0.00031,31]
[393916681,1763094265847,-151.0,0.00031,31]
[393916682,1763094265891,-177.24018,0.00031,31]
[393916683,1763094265934,-177.24018,0.00031,31]
[393916684,1763094265976,-161.168592,0.00031,31]
[393916685,1763094266019,-371.015786,0.00031,31]
[393916686,1763094266063,-371.015786,0.00031,31]
[393916687,1763094266109,-371.015786,0.00031,31]
[393916688,1763094266152,-151.0,0.00031,31]
[393916689,1763094266195,-371.015786,0.00031,31]
[393916690,1763094266236,-155.45981,0.00031,31]
[393916691,1763094266275,-1007.45,0.00031047,120]
[393916692,1763094266313,-1007.45,0.00031185,120]
[393916693,1763094266354,-1007.45,0.00031362,120]
[393916694,1763094266394,-444.28,0.000315,30]
[393916695,1763094266435,-188.0,0.00031503,120]
[393916696,1763094266479,-200.0,0.00032,120]
[393916697,1763094266524,-199.970098,0.00032877,31]
[393916698,1763094266568,-199.970098,0.00032877,31]
[393916699,1763094266610,-199.970098,0.00032877,31]
[393916700,1763094266651,-199.970098,0.00032877,31]
[393916701,1763094266694,-150.0,0.00032877,60]
[393916702,1763094266734,-150.0,0.00032904,60]
[393916703,1763094266774,-150.0,0.00032932,60]
[393916704,1763094266814,-150.0,0.00032959,60]
[393916705,1763094266857,-150.0,0.00032987,60]
[393916706,1763094266900,-157.72470024,0.00033014,60]
[393916707,1763094266946,-188.0,0.00033078,120]
[393916708,1763094266991,-667.76245,0.00033205,120]
[393916709,1763094267041,-185.043,0.00033633,36]
[393916710,1763094267237,-2097.604,0.00033633,36]
[393916711,1763094267284,-444.28,0.00034,30]
[393916712,1763094267327,-200.0,0.00034,120]
[393916713,1763094267371,-848.9,0.00034751,30]
[393916714,1763094267414,-206.37744859,0.00035264,120]
[393916715,1763094267455,-205.42394002,0.00035264,120]
[393916716,1763094267498,-151.0,0.00035616,31]
[393916717,1763094267537,-151.0,0.00035616,31]
[393916718,1763094267577,-154.053978,0.00035616,31]
[393916719,1763094267616,-151.0,0.00035616,31]
[393916720,1763094267655,-151.0,0.00035616,31]
[393916721,1763094267695,-151.0,0.00035616,31]
[393916722,1763094267734,-151.0,0.00035616,31]